Workbook

Sheet План 2017
A1: Наработка, месяц | B1: 2017г.
B2: январь | D2: февраль | F2: март | H2: апрель | J2: май
B3: вид ТО | C3: наработка | D3: вид ТО | E3: наработка | F3: вид ТО | G3: наработка | H3: вид ТО | I3: наработка | J3: вид ТО | K3: наработка
A4: 250 | B4: ТО1 | C4: 250 | D4: ТО2 | E4: =C4+$A$4 -> 500 | F4: ТО1 | G4: =E4+$A$4 -> 750 | H4: ТО3 | I4: =G4+$A$4 -> 1000 | J4: ТО1 | K4: =I4+$A$4 -> 1250
A5: 430 | B5: ТО1 | C5: 430 | D5: ТО2, ТО1 | E5: =C5+$A$5 -> 860 | F5: ТО3, ТО1 | G5: =E5+$A$5 -> 1290 | H5: ТО2, | I5: =G5+$A$5 -> 1720 | J5: ТО1, ТО3 | K5: =I5+$A$5 -> 2150
A6: 500 | B6: ТО2 | C6: 500 | D6: ТО1, ТО3 | E6: =C6+$A$6 -> 1000 | F6: ТО1, ТО2 | G6: =E6+$A$6 -> 1500 | H6: ТО1, ТО2 | I6: =G6+$A$6 -> 2000 | J6: ТО1, ТО3 | K6: =I6+$A$6 -> 2500
B7: =STRTO(A4,C4) ->  | D7: =STRTO(C4,E4) -> ТО2 | F7: =STRTO(E4,G4) -> ТО1 | H7: =STRTO(G4,I4) -> ТО3 | J7: =STRTO(I4,K4) -> ТО1
B8: =STRTO(A5,C5) ->  | D8: =STRTO(C5,E5) -> ТО2, ТО1 | F8: =STRTO(E5,G5) -> ТО3, ТО1 | H8: =STRTO(G5,I5) -> ТО2 | J8: =STRTO(I5,K5) -> ТО1, ТО3
D9: =STRTO(C6,E6) -> ТО1, ТО3 | F9: =STRTO(E6,G6) -> ТО1, ТО2 | H9: =STRTO(G6,I6) -> ТО1, ТО3 | J9: =STRTO(I6,K6) -> ТО1, ТО2
A29: и далее с начала по циклу

Sheet Лист1
B1: Вид обслуживания | C1: Время в ремонте час | D1: Трудозатраты ч/ч
A2: каждые 250 моточасов | B2: ТО-1 | C2: 6 | D2: 8
A3: каждые 500 моточасов | B3: ТО-2 | C3: 16 | D3: 24
A4: каждые 1000 моточасов | B4: ТО-3 | C4: 48 | D4: 36
A5: каждые 2000 моточасов | B5: ТР | C5: 72 | D5: 52
B6: 0 | C6: 0 | D6: 0
A8: 0
A9: 250 | B9: ТО1
A10: =A9+250 -> 500 | B10: ТО2
A11: =A10+250 -> 750 | B11: ТО1
A12: 1000 | B12: ТО3
A13: 1250 | B13: ТО1
A14: 1500 | B14: ТО2
A15: 1750 | B15: ТО1
A16: 2000 | B16: ТО3
A17: 2250 | B17: ТО1
A18: 2500 | B18: ТО2
A19: 2750 | B19: ТО1
A20: 3000 | B20: ТО4
A21: 3250 | B21: ТО1
A22: 3500 | B22: ТО2
A23: 3750 | B23: ТО1
A24: 4000 | B24: ТО3
A25: 4250 | B25: ТО1
A26: 4500 | B26: ТО2
A27: 4750 | B27: ТО1
A28: 5000 | B28: ТО3
A29: 5250 | B29: ТО1
A30: 5500 | B30: ТО2
A31: 5750 | B31: ТО1
A32: 6000 | B32: ТО4
A33: 6250 | B33: ТО1
A34: 6500 | B34: ТО2
A35: 6750 | B35: ТО1
A36: 7000 | B36: ТО3
A37: 7250 | B37: ТО1
A38: 7500 | B38: ТО2
A39: 7750 | B39: ТО1
A40: 8000 | B40: ТО3
A41: 8250 | B41: ТО1
A42: 8500 | B42: ТО2
A43: 8750 | B43: ТО1
A44: 9000 | B44: ТО4
A45: 9250 | B45: ТО1
A46: 9500 | B46: ТО2
A47: 9750 | B47: ТО1
A48: 10000 | B48: ТО3
A49: 10250 | B49: ТО1
A50: 10500 | B50: ТО2
A51: 10750 | B51: ТО1
A52: 11000 | B52: ТО3
A53: 11250 | B53: ТО1
A54: 11500 | B54: ТО2
A55: 11750 | B55: ТО1
A56: 12000 | B56: ТО4
A57: 12250 | B57: ТО1
A58: 12500 | B58: ТО2
A59: 12750 | B59: ТО1
A60: 13000 | B60: ТО3
A61: 13250 | B61: ТО1
A62: 13500 | B62: ТО2
A63: 13750 | B63: ТО1
A64: 14000 | B64: ТО3
A65: 14250 | B65: ТО1
A66: 14500 | B66: ТО2
A67: 14750 | B67: ТО1
A68: 15000 | B68: ТО4
A69: 15250 | B69: ТО1
A70: 15500 | B70: ТО2
A71: 15750 | B71: ТО1
A72: 16000 | B72: ТО3
A73: 16250 | B73: ТО1
A74: 16500 | B74: ТО2
A75: =A74+250 -> 16750 | B75: ТО1
A76: 17000 | B76: ТО3
A77: 17250 | B77: ТО1
A78: 17500 | B78: ТО2
A79: 17750 | B79: ТО1
A80: 18000 | B80: ТО4
A81: 18250 | B81: ТО1
A82: 18500 | B82: ТО2
A83: 18750 | B83: ТО1
A84: 19000 | B84: ТО3
A85: 19250 | B85: ТО1
A86: 19500 | B86: ТО2
A87: 19750 | B87: ТО1
A88: 20000 | B88: ТО3
A89: 20250 | B89: ТО1
A90: 20500 | B90: ТО2
A91: 20750 | B91: ТО1
A92: 21000 | B92: ТО4
A93: 21250 | B93: ТО1
A94: 21500 | B94: ТО2
A95: 21750 | B95: ТО1
A96: 22000 | B96: ТО3
A97: 22250 | B97: ТО1
A98: 22500 | B98: ТО2
A99: 22750 | B99: ТО1
A100: 23000 | B100: ТО3
A101: 23250 | B101: ТО1
A102: 23500 | B102: ТО2
A103: 23750 | B103: ТО1
A104: 24000 | B104: ТО4
A105: 24250 | B105: ТО1
A106: 24500 | B106: ТО2
A107: 24750 | B107: ТО1
A108: 25000 | B108: ТО3
A109: 25250 | B109: ТО1
A110: 25500 | B110: ТО2
A111: 25750 | B111: ТО1
A112: 26000 | B112: ТО3
A113: 26250 | B113: ТО1
A114: 26500 | B114: ТО2
A115: 26750 | B115: ТО1
A116: 27000 | B116: ТО4
